Cogmind - Beta 14 @@@ ROGUE MODE // 2024.08.30 @ 17:31:15 Player: Some Pennies Result: Destroyed by Y-45 Defender with Heavy Assault Rifle Performance ------------- Evolutions (0) 0 Regions Visited (4) 800 Robots Destroyed (49) 245 Value Destroyed (953) 953 Prototype IDs (14) 280 Alien Tech Used (0) 0 Bonus (0) 0 TOTAL SCORE: 2278 Bonus ------- None Cogmind --------- Core Integrity 0/250 Matter 218/300 Energy 100/100 System Corruption 0% Temperature Cool (40) Movement Walking (680) Ox8 Location -9/Mines Parts ------- > --- POWER (1) -------- (None) > --- PROPULSION (2) --- Aluminum Leg > --- UTILITY (2) ------ Huge Storage Unit Light Armor Plating > --- WEAPON (2) ------- Light Assault Rifle Light Cannon > --- INVENTORY (25) --- Ion Engine Light Ion Engine Heat Sink Heat Sink Medium Storage Unit Structural Scanner Seismic Detector ECM Suite Core Shielding Light Armor Plating Rocket Launcher Datajack Katana Peak State ------------ > --- POWER ------------ Ion Engine > --- PROPULSION ------- Light Treads Light Treads > --- UTILITY ---------- Small Storage Unit Improved Terrain Scanner > --- WEAPON ----------- Medium Laser Small Laser > --- INVENTORY -------- Ion Engine Light Ion Engine Light Assault Rifle [Rating: 9] Favorites ----------- Power Ion Engine Engine Ion Engine Propulsion Light Treads Treads Light Treads Leg Aluminum Leg Utility Huge Storage Unit Device Heat Sink Storage Huge Storage Unit Protection Light Armor Plating Weapon Light Assault Rifle Energy Gun Medium Laser Energy Cannon Beam Cannon Ballistic Gun Light Assault Rifle Ballistic Cannon Light Cannon Launcher Rocket Launcher Special Weapon Mining Laser Special Melee Weapon Datajack Build | -11 -10 -10 -10 -9 ------- Run | Yrd Mat Min Exi Min Slots Evolved . | . . . . . Power . | . . . . . Propulsion . | . . . . . Utility . | . . . . . Weapon . | . . . . . Parts Attached 28 | 3 14 3 1 7 Power 2 | . 2 . . . Engine 2 | . 2 . . . Core . | . . . . . Reactor . | . . . . . Propulsion 5 | 2 2 . . 1 Treads 3 | 2 1 . . . Leg 2 | . 1 . . 1 Wheel . | . . . . . Hover . | . . . . . Flight . | . . . . . Utility 8 | 1 4 1 . 2 Device 3 | 1 2 . . . Storage 2 | . 2 . . . Processor . | . . . . . Hackware . | . . . . . Protection 3 | . . 1 . 2 Artifact . | . . . . . Weapon 13 | . 6 2 1 4 Energy Gun 2 | . 1 . . 1 Energy Cannon 3 | . 1 1 . 1 Ballistic Gun 4 | . 3 . . 1 Ballistic Cannon 1 | . . . . 1 Launcher 1 | . . 1 . . Special Weapon 1 | . 1 . . . Impact Weapon . | . . . . . Slashing Weapon . | . . . . . Piercing Weapon . | . . . . . Special Melee Weapon 1 | . . . 1 . Unidentified Prototypes . | . . . . . Parts Lost 10 | . 2 . . 8 Power 1 | . . . . 1 Propulsion 4 | . 2 . . 2 Utility 2 | . . . . 2 Weapon 3 | . . . . 3 Highest Loss Streak 4 | . 2 . . 4 To Critical Strikes . | . . . . . Average Slot Usage (%) 99 | . 99 100 100 96 Engine 13 | . 14 14 14 13 Treads 18 | . 22 14 14 11 Leg 9 | . 5 14 14 14 Device 8 | . 14 12 . . Storage 14 | . 14 14 14 14 Protection 5 | . . 1 14 14 Energy Gun 2 | . 3 . . 2 Energy Cannon 9 | . 11 13 2 7 Ballistic Gun 13 | . 12 14 14 14 Special Melee Weapon 2 | . . . 11 3 Peak Build Rating 9 | 9 9 9 9 9 Average Rating 8 | 8 8 8 9 8 On Entrance 8 | 6 9 8 9 9 Naked Turns . | . . . . . Heaviest Build 92 | 14 90 92 92 92 Greatest Support 40 | 40 40 20 20 20 Greatest Overweight (x) 9 | . 4 4 4 9 Average Overweight (x) 2 | . 1 4 4 4 Largest Inventory Capacity 25 | 8 25 25 25 25 Average Capacity 19 | 8 19 25 25 25 Most Carried 18 | 6 18 18 18 18 Average Carried 12 | 3 13 17 18 17 Final Capacity 25 | 8 25 25 25 25 Final Carried 18 | 4 17 18 18 13 Class Distribution -------------------- 51% | Scavenger-Mutant 48% | Mutant Dominant Class ---------------- Mutant | -10/Materials Scavenger-Mutant | -10/Mines Scavenger-Mutant | -10/Exiles Scavenger-Mutant | -9/Mines Resources | -11 -10 -10 -10 -9 ----------- Run | Yrd Mat Min Exi Min Matter Collected 520 | 230 200 13 . 77 Remotely . | . . . . . Salvage Created 1408 | 310 920 91 . 87 Parts 102 | 25 66 4 . 7 Haulers Intercepted 2 | . 2 . . . Recyclers Shooed 2 | 1 . 1 . . Parts Field Recycled . | . . . . . Retrieved Matter . | . . . . . Parts Self-Destructed . | . . . . . Prevented . | . . . . . Kills | -11 -10 -10 -10 -9 ------- Run | Yrd Mat Min Exi Min Combat Hostiles Destroyed 28 | . 21 5 . 2 Guns 12 | . 8 2 . 2 Cannons 14 | . 13 1 . . AOE 2 | . . 2 . . Classes Destroyed 9 | 3 5 . . 1 Worker 5 | 3 2 . . . Tunneler 9 | 9 . . . . Hauler 2 | . 2 . . . Recycler 1 | 1 . . . . Operator 1 | . 1 . . . Watcher 3 | . 3 . . . Swarmer 9 | . 6 3 . . Grunt 18 | . 15 2 . 1 Duelist 1 | . . . . 1 Best Kill Streak 7 | 2 7 2 . 2 Combat Bots Only 7 | . 7 2 . 2 Max Kills in Single Turn 1 | 1 1 1 . 1 Gunslinging . | . . . . . Exploded 1 | . . 1 . . Melee . | . . . . . Uniques/NPCs Destroyed . | . . . . . Combat | -11 -10 -10 -10 -9 -------- Run | Yrd Mat Min Exi Min Hostile Shots Fired 176 | . 86 35 . 55 Missed 46 | . 25 10 . 11 Damage Taken 1629 | . 680 263 . 686 Core 261 | . 134 56 . 71 Absorbed by Shields . | . . . . . Core Remaining (%) 100 | 100 . . . . Volleys Fired 143 | 35 78 19 . 11 Largest 2 | 2 2 2 . 2 Hottest 100 | 90 100 80 . 85 Shots Fired 278 | 70 154 32 . 22 Gun 176 | 70 76 13 . 17 Cannon 94 | . 76 13 . 5 Launcher 6 | . . 6 . . Special 2 | . 2 . . . Kinetic 103 | . 76 13 . 14 Thermal 169 | 70 78 13 . 8 Explosive 6 | . . 6 . . Electromagnetic . | . . . . . Robot Hit Streak 22 | 7 22 4 . 4 Robot Miss Streak 7 | 2 7 4 . 2 Penetration Max . | . . . . . Secondary Targets 1 | . . . . 1 Max Gunslinging Chain 1 | . . . . 1 Shots Hit Robots 166 | 40 92 18 4 12 Core Hits 73 | 14 45 7 . 7 Critical Kills . | . . . . . Critical Parts Destroyed . | . . . . . Critical Strikes 2 | 2 . . . . Burn 2 | 2 . . . . Melee Attacks 4 | . . . 4 . Impact . | . . . . . Slashing . | . . . . . Piercing . | . . . . . Sneak Attacks 4 | . . . 4 . Combat Hostiles . | . . . . . Follow-up Attacks . | . . . . . Damage Inflicted 2324 | 516 1278 390 . 140 Guns 1083 | 516 375 86 . 106 Cannons 968 | . 866 68 . 34 Explosions 236 | . . 236 . . Melee . | . . . . . Ramming 37 | . 37 . . . Kinetic 551 | . 375 86 . 90 Thermal 1500 | 516 866 68 . 50 Explosive 236 | . . 236 . . Electromagnetic . | . . . . . Impact . | . . . . . Slashing . | . . . . . Piercing . | . . . . . Highest Corruption . | . . . . . Average Corruption . | . . . . . Corruption Purged . | . . . . . Corruption Blocked . | . . . . . Overload Shots . | . . . . . Overflow Damage 21 | . 17 4 . . Projectiles 21 | . 17 4 . . Explosions . | . . . . . Melee . | . . . . . Knockbacks . | . . . . . Impact . | . . . . . Kinetic . | . . . . . Secondary . | . . . . . Self-Inflicted Damage 21 | . . 21 . . Shots 1 | . . 1 . . Rammed 4 | . 4 . . . Targets Rammed 5 | . 5 . . . Kicked . | . . . . . Crushed 1 | . 1 . . . Highest Temperature 260 | 200 211 40 . 260 Average Temperature 49 | 53 39 19 . 97 Received Heat Transfer 537 | . 288 51 . 198 Siege Activations . | . . . . . Robots Corrupted . | . . . . . Combat Hostiles . | . . . . . Parts Fried . | . . . . . Impact Corruptions . | . . . . . Robots Melted . | . . . . . Combat Hostiles . | . . . . . Parts Melted 5 | 2 2 1 . . Heat Transferred 3558 | 1523 1776 148 . 111 Parts Sabotaged . | . . . . . Parts Stolen . | . . . . . Parts Stripped . | . . . . . Power Chain Reactions . | . . . . . Alert | -11 -10 -10 -10 -9 ------- Run | Yrd Mat Min Exi Min Peak Influence 378 | 55 378 144 . 65 Initial 44 | . . 44 . . Average 105 | 9 181 94 . 7 Maximum Alert Level 1 | . 1 . . . Low Security (%) 79 | 100 59 100 . 100 Level 1 20 | . 40 . . . Level 2 . | . . . . . Level 3 . | . . . . . Level 4 . | . . . . . Level 5 . | . . . . . High Security . | . . . . . Max Security . | . . . . . Squads Dispatched 3 | . 3 . . . Investigation 2 | . 2 . . . Extermination . | . . . . . Reinforcement 1 | . 1 . . . Assault . | . . . . . Garrison . | . . . . . Intercept . | . . . . . Searches Triggered . | . . . . . Construction Impeded . | . . . . . Haulers Reinforced . | . . . . . Active Scanning Responses . | . . . . . Cargo Convoy Interrupts . | . . . . . Stealth | -11 -10 -10 -10 -9 --------- Run | Yrd Mat Min Exi Min Distress Signals 2 | . 2 . . . Communications Jammed . | . . . . . Distress Signals . | . . . . . Times Spotted 47 | . 37 5 . 5 Peak Tracking Total 5 | . 5 3 . 3 Tactical Retreats 3 | . 1 2 . . Traps | -11 -10 -10 -10 -9 ------- Run | Yrd Mat Min Exi Min Traps Triggered . | . . . . . Indirectly . | . . . . . Trap Hack Attempts . | . . . . . Triggered . | . . . . . Disarmed . | . . . . . Reprogrammed . | . . . . . Reused . | . . . . . Traps Extracted . | . . . . . Installed . | . . . . . Triggered . | . . . . . Machines | -11 -10 -10 -10 -9 ---------- Run | Yrd Mat Min Exi Min Machines Disabled 2 | . 1 . . 1 Max in Single Turn 1 | . 1 . . 1 Machines Repaired . | . . . . . Machines Dismantled . | . . . . . Machines Sabotaged . | . . . . . Overloaded Fab Kills . | . . . . . Hacking | -11 -10 -10 -10 -9 --------- Run | Yrd Mat Min Exi Min Machines Accessed 10 | . 9 . 1 . Terminals 7 | . 7 . . . Fabricators . | . . . . . Repair Stations . | . . . . . Recycling Units 2 | . 2 . . . Scanalyzers . | . . . . . Garrison Access . | . . . . . Total Hacks 33 | . 32 . 1 . Successful 17 | . 16 . 1 . Failed 15 | . 15 . . . Catastrophic . | . . . . . Database Lockouts 1 | . 1 . . . Manual 27 | . 27 . . . Terminals 26 | . 26 . . . Fabricators . | . . . . . Repair Stations . | . . . . . Recycling Units 6 | . 6 . . . Scanalyzers . | . . . . . Garrison Access . | . . . . . Terminal Hacks 5 | . 4 . 1 . Record 1 | . . . 1 . Robot Analysis 1 | . 1 . . . Unreport Threat 1 | . 1 . . . Locate Traps 1 | . 1 . . . Zone Layout 1 | . 1 . . . Fabricator Hacks . | . . . . . Repair Station Hacks . | . . . . . Recycling Unit Hacks 1 | . 1 . . . Retrieve Components 1 | . 1 . . . Scanalyzer . | . . . . . Garrison Access Hacks . | . . . . . Unauthorized Hacks 11 | . 11 . . . Terminals 9 | . 9 . . . Botnet 3 | . 3 . . . Operators 1 | . 1 . . . Skim 5 | . 5 . . . Fabricators . | . . . . . Repair Stations . | . . . . . Recycling Units 2 | . 2 . . . Tunnel 2 | . 2 . . . Scanalyzers . | . . . . . Garrison Access . | . . . . . Data Cores Recovered . | . . . . . Used . | . . . . . Hacking Detections 6 | . 6 . . . Full Trace Events . | . . . . . Feedback Events . | . . . . . Feedback Blocked . | . . . . . Robot Schematics Acquired . | . . . . . Robots Built . | . . . . . Authchips . | . . . . . Time . | . . . . . Total Robot Build Rating . | . . . . . Part Schematics Acquired . | . . . . . Parts Built . | . . . . . Authchips . | . . . . . Time . | . . . . . Total Part Build Rating . | . . . . . Parts Repaired . | . . . . . Time . | . . . . . Parts Recycled . | . . . . . Recycled Matter . | . . . . . Retrieved Matter . | . . . . . Retrieved Components 10 | . 10 . . . Parts Scanalyzed . | . . . . . Part Schematics Acquired . | . . . . . Parts Damaged . | . . . . . Bothacking | -11 -10 -10 -10 -9 ------------ Run | Yrd Mat Min Exi Min Used RIF Installer . | . . . . . Robots Hacked 4 | . . . 4 . Non-combat 3 | . . . 3 . Combat 1 | . . . 1 . Robot Hacks Applied 4 | . . . 4 . parse_system 4 | . . . 4 . Relay Couplers Released . | . . . . . Fabnet Peak Effective % . | . . . . . Robots Rewired . | . . . . . Allies Hacked . | . . . . . Hacks Repelled . | . . . . . Allies | -11 -10 -10 -10 -9 -------- Run | Yrd Mat Min Exi Min Total Allies . | . . . . . Largest Group . | . . . . . Highest-Rated Group . | . . . . . Highest-Rated Ally . | . . . . . Total Orders . | . . . . . Ally Attacks . | . . . . . Total Damage . | . . . . . Kills . | . . . . . Allies Corrupted . | . . . . . Allies Melted . | . . . . . Intel | -11 -10 -10 -10 -9 ------- Run | Yrd Mat Min Exi Min Robot Analysis Total 1 | . 1 . . . Derelict Logs Recovered 1 | . . 1 . . Drone Launches . | . . . . . Drone Recoveries . | . . . . . Exploration | -11 -10 -10 -10 -9 ------------- Run | Yrd Mat Min Exi Min Turns Passed 6603 | 1360 2848 568 1006 821 Spaces Moved 1508 | 321 717 108 209 153 Core . | . . . . . Treads 1491 | 321 717 108 209 136 Legs 17 | . . . . 17 Wheels . | . . . . . Hover . | . . . . . Flight . | . . . . . Fastest Speed 160 | 160 160 480 480 480 Average Speed 333 | 160 307 480 480 510 Slowest Speed 750 | 160 480 480 480 750 Overloaded Moves . | . . . . . Propulsion Burnouts . | . . . . . Robots Hopped . | . . . . . Cave-ins Triggered . | . . . . . Exploration Rate (%) 49 | 10 92 33 58 52 Regions Visited 4 Branch Regions 3 Pre-discovered Areas 4 | . 3 . 1 . Known Exits Taken . | . . . . . Unknown Exits Taken 4 | 1 1 1 1 . Scrap Searched . | . . . . . Spaces Dug 2 | . 2 . . . Terrain Destroyed 33 | . 2 31 . . Melee . | . . . . . Projectile 2 | . 2 . . . AOE 31 | . . 31 . . Terrain Rammed . | . . . . . Walls Destroyed . | . . . . . Machines Disabled . | . . . . . Actions | -11 -10 -10 -10 -9 --------- Run | Yrd Mat Min Exi Min Total 2819 | 1099 1203 130 213 174 Wait 1094 | 734 360 . . . Move 1504 | 320 716 107 208 153 Hop . | . . . . . Pick Up 26 | 3 20 1 . 2 Fast Attach . | . . . . . Attach 9 | 1 2 . . 6 Detach . | . . . . . Swap 19 | 2 12 3 1 1 Drop 15 | 4 10 . . 1 Fire 143 | 35 78 19 . 11 Melee 4 | . . . 4 . Ram . | . . . . . Kick . | . . . . . Crush 5 | . 5 . . . Escape Stasis . | . . . . . Rewire . | . . . . . Trap . | . . . . . Miscellaneous . | . . . . . Route ------- -11/Scrapyard -10/Materials (discovered 6 exits: *Mat x3 / [*Min x2] / *Sub) -10/Mines (discovered 4 exits: *Mat x2 / *Exi / Sub) -10/Exiles -9/Mines History --------- Turn | Location | Event 12 | -11/Scrapyard | Discovered new exit (range 2) 1361 | -11/Scrapyard | Entered Materials 1362 | -10/Materials | Build established: Mutant 1938 | -10/Materials | Discovered new exit (range 12) 2067 | -10/Materials | Discovered new exit (range 16) 2196 | -10/Materials | Discovered new exit (range 16) 2316 | -10/Materials | Loaded intel: 2 recycling unit locations 2378 | -10/Materials | Learned 2 Storage zone layouts 2475 | -10/Materials | Loaded intel: 13 trap records 2509 | -10/Materials | Identified exit to Materials 2551 | -10/Materials | Learned Recycling recycling unit intel 2602 | -10/Materials | Learned location of 2 exits from Mines 3194 | -10/Materials | Core integrity fell below 50% 3225 | -10/Materials | Destroyed 7 combat bots 3498 | -10/Materials | Build established: Scavenger-Mutant 3668 | -10/Materials | Central database locked down 4132 | -10/Materials | Discovered new exit (range 11) 4209 | -10/Materials | Entered Mines 4210 | -10/Mines | Identified exit to Subcaves 4217 | -10/Mines | Met a Derelict bent on vengeance 4267 | -10/Mines | Learned Materials interactive machine intel 4584 | -10/Mines | Received a Rocket Launcher from a helpful Derelict 4698 | -10/Mines | Discovered exit to Materials (range 12) 4753 | -10/Mines | Deemed a non-threat by the Exiles lab entrance 4758 | -10/Mines | Discovered new exit (range 5) 4777 | -10/Mines | Entered Exiles 4917 | -10/Exiles | Met 8R-AWN 4984 | -10/Exiles | Met EX-HEX 5185 | -10/Exiles | Met EX-BIN 5374 | -10/Exiles | Learned location of Zion (-6) 5379 | -10/Exiles | Met EX-DEC 5716 | -10/Exiles | Discovered new exit (range 14) 5783 | -10/Exiles | Entered Mines 6442 | -9/Mines | Core integrity fell below 20% 6476 | -9/Mines | Lost 4 parts (2n1u1w) 6604 | -9/Mines | Destroyed by Y-45 Defender with Heavy Assault Rifle Last Messages --------------- 05865_ K-01 Serf collects debris. 06442_ Lgt. Treads destroyed. 06444_ Beam Cannon destroyed. 06444_ Lgt. Armor Plating destroyed. 06445_ Aluminum Leg destroyed. 06449_ L-31 Rogue destroyed. 06449_ Switching to secondary target: G-34 Mercenary. 06449_ G-34 Mercenary destroyed. 06460_ Acquired 42 matter. 06475_ Acquired Core Shielding. 06491_ Acquired Katana. 06492_ Dropped Mining Laser. 06508_ Acquired 35 matter. 06532_ K-01 Serf collects debris. 06582_ Lgt. Assault Rifle destroyed. 06585_ Ion Engine destroyed. 06591_ Machine disabled. 06592_ Lgt. Armor Plating destroyed. 06594_ Particle Gun destroyed. Map ----- +----------------------------------------------------+ | ????????????????????????????????? | | ????????????????????????????????? | | ????????????????####????????????? | | ??????????????### ##???????????? | | ????????????### #???????????? | | ???????????## #????????????? | | ???????????# """ ##????????????? | | ???????????# """ ##????????????? | | ???????????# """ #####????????? | | ???????????## #####????? | | ????????????## ##???? | | ?????????????## ##??? | | ??????????????# ###? | | ??????????????# ### ## | | ??????????????# ###?## | | ??????????????# ##????### | | ??????????????# ##??????## # | | ??????????????# ####????## ## | | ??????????????# ##????#####? | | ??????????????## #?????????? | | ???????????????## ##?????????? | | ????###?######??## ##??????????? | | ???##!!## ##### ##???????????? | | ???# ][ # k #????????????? | | ???# Y% / #### #????????????? | | ???#Y % @ #??# #????????????? | | ???#"][ # ##### ###??????????? | | ???##[[## | !! [ # """????? | | ????###?# = =%! """????? | | ???????# #######= # """????? | | ??????# #?????? #? #???? | | ??????# ?????? #??#####???? | | ??????# ????? #??????????? | | ??????# #???? #??????????? | | ??????# ##???? #??????????? | | ?????? #????? #??????????? | | ?????# #????? #??????????? | | ?????## #?????? #??????????? | | ??????## ##?????? ??????????? | | ???????### #??????? ??????????? | | ?????????# ???????? ??????????? | | ????????????????????????????????? | | ????????????????????????????????? | | ????????????????????????????????? | | ????????????????????????????????? | | ????????????????????????????????? | | ????????????????????????????????? | | ????????????????????????????????? | | ????????????????????????????????? | | ????????????????????????????????# | +----------------------------------------------------+ Best States ------------- Heat Dissipation 35 Energy Generation 10 Energy Capacity 250 Matter Stores 300 Matter Capacity 300 Sight Range 16 Terrain Scan Range 16 Terrain Scan Density 10 Armor Coverage 150 Evasion (%) 40 Recoil Reduction 2 Item Schematics ----------------- None Robot Schematics ------------------ None Fabricated ------------ Nothing Alien Tech Used ----------------- None Achievements -------------- None Challenges ------------ None Game ------ Seed AlertNovaSuit Manual? 0 Play Time 00:19:19 Cumulative 273.0 hours Start 2024.08.30 @ 17:11:56 End 2024.08.30 @ 17:31:15 Sessions 1 Manual Loads 0 Difficulty Rogue Special Mode None Game No. 212 Rogue 207 Adventurer 5 Explorer 0 Win Type - Total 6 Types 4/0/2/0/0/0/0/0/0 Lore% 64 Gallery% 83 Achievement% 66 Wizard Run 0 Options --------- Layout 2 ASCII 0 Keyboard 0 Movement Mouse Keybinds 0 Fullscreen 2 Font 24/Smallcaps Map View 50x44 Zoom Use 0% Tactical HUD 1 Map Filters NONE Filters NONE Steam 1 RUN: 5fb835f3-722d-4277-a040-ac18e424dcb7